[Event "56th Biel Festival MTO 2023"]
[White "Joly,Julien"]
[Black "Adam,Rafael"]
[Site "Biel"]
[Round "6.35"]
[Annotator "ChessBase"]
[Result "1-0"]
[Date "2023.07.24"]
[WhiteElo "2249"]
[BlackElo "2117"]
[PlyCount "121"]
[TimeControl "60"]

1. d4 {[%emt 0:0:0]} Nf6 {[%emt 0:0:0]} 2. Nf3 {[%emt 0:0:0]} d5 {[%emt 0:0:0]} 3. Bf4 {[%emt 0:0:0]} c5 {[%emt 0:0:0]} 4. e3 {[%emt 0:0:0]} Nc6 {[%emt 0:0:0]} 5. dxc5 {[%emt 0:5:12]} Qa5+ {[%emt 0:2:19]} 6. Nbd2 {[%emt 0:1:7]} Qxc5 {[%emt 0:0:19]} 7. c4 {[%emt 0:8:15]} Bf5 {[%emt 0:21:32]} 8. a3 {[%emt 0:0:50]} dxc4 {[%emt 0:6:7]} 9. Nxc4 {[%emt 0:14:37]} Qd5 {[%emt 0:29:34]} 10. Qb3 {[%emt 0:13:26]} b5 {[%emt 0:1:42]} 11. Ncd2 {[%emt 0:7:15]} a6 {[%emt 0:4:44]} 12. a4 {[%emt 0:3:0]} Qxb3 {[%emt 0:2:3]} 13. Nxb3 {[%emt 0:0:6]} bxa4 {[%emt 0:0:39]} 14. Rxa4 {[%emt 0:0:50]} Bc2 {[%emt 0:1:6]} 15. Rc4 {[%emt 0:5:39]} Bxb3 {[%emt 0:0:11]} 16. Rxc6 {[%emt 0:0:8]} e6 {[%emt 0:1:30]} 17. Nd2 {[%emt 0:4:23]} Bb4 {[%emt 0:5:46]} 18. Rb6 {[%emt 0:0:9]} Bxd2+ {[%emt 0:8:5]} 19. Kxd2 {[%emt 0:0:33]} Bd5 {[%emt 0:8:35]} 20. f3 {[%emt 0:5:28]} O-O {[%emt 0:1:20]} 21. e4 {[%emt 0:1:51]} Rfd8 {[%emt 0:0:23]} 22. Ke3 {[%emt 0:8:56]} a5 {[%emt 0:0:38]} 23. Bg5 {[%emt 0:3:7]} Ba2 {[%emt 0:0:46]} 24. Bd3 {[%emt 0:4:2]} Rdb8 {[%emt 0:0:45]} 25. Rxb8+ {[%emt 0:0:20]} Rxb8 {[%emt 0:0:4]} 26. Rc1 {[%emt 0:0:10]} a4 {[%emt 0:1:50]} 27. Bf4 {[%emt 0:1:17]} Ra8 {[%emt 0:0:42]} 28. Bd6 {[%emt 0:6:11]} Ne8 {[%emt 0:1:47]} 29. Ba3 {[%emt 0:0:12]} f6 {[%emt 0:0:33]} 30. Rc6 {[%emt 0:0:52]} Kf7 {[%emt 0:0:38]} 31. Kd2 {[%emt 0:1:36]} e5 {[%emt 0:0:45]} 32. Kc3 {[%emt 0:0:55]} Ra7 {[%emt 0:0:35]} 33. Bc5 {[%emt 0:2:51]} Rb7 {[%emt 0:0:8]} 34. Rb6 {[%emt 0:0:30]} Rc7 {[%emt 0:1:39]} 35. Kb4 {[%emt 0:0:25]} Bb3 {[%emt 0:0:11]} 36. Bb5 {[%emt 0:1:17]} g6 {[%emt 0:0:46]} 37. Bc4+ {[%emt 0:2:12]} Bxc4 {[%emt 0:0:9]} 38. Kxc4 {[%emt 0:0:2]} Ng7 {[%emt 0:0:22]} 39. Ra6 {[%emt 0:1:25]} Ne6 {[%emt 0:0:22]} 40. Ra7 {[%emt 0:0:7]} Rxa7 {[%emt 0:1:3]} 41. Bxa7 {[%emt 0:30:2]} f5 {[%emt 0:0:0]} 42. Be3 {[%emt 0:0:0]} Kf6 {[%emt 0:0:0]} 43. Kb4 {[%emt 0:0:0]} fxe4 {[%emt 0:0:0]} 44. fxe4 {[%emt 0:0:0]} Nf4 {[%emt 0:0:0]} 45. Kxa4 {[%emt 0:0:0]} Nxg2 {[%emt 0:0:0]} 46. Bd2 {[%emt 0:0:0]} Nf4 {[%emt 0:0:0]} 47. b4 {[%emt 0:0:0]} Nd3 {[%emt 0:11:44]} 48. Be3 {[%emt 0:0:0]} Ke6 {[%emt 0:1:51]} 49. b5 {[%emt 0:0:0]} Kd6 {[%emt 0:0:39]} 50. Ka5 {[%emt 0:0:0]} Kc7 {[%emt 0:1:24]} 51. Ka6 {[%emt 0:0:0]} Kb8 {[%emt 0:1:11]} 52. Kb6 {[%emt 0:0:0]} Nb2 {[%emt 0:2:24]} 53. Kc6 {[%emt 0:0:0]} Nc4 {[%emt 0:2:7]} 54. Bc5 {[%emt 0:0:0]} g5 {[%emt 0:0:38]} 55. Kd5 {[%emt 0:3:16]} Nd2 {[%emt 0:0:35]} 56. Kxe5 {[%emt 0:0:25]} g4 {[%emt 0:0:44]} 57. Kf5 {[%emt 0:1:5]} h5 {[%emt 0:0:17]} 58. e5 {[%emt 0:0:13]} Nf3 {[%emt 0:0:15]} 59. e6 {[%emt 0:0:11]} Kc7 {[%emt 0:0:21]} 60. b6+ {[%emt 0:0:11]} Kc8 {[%emt 0:0:18]} 61. b7+ {[%emt 0:0:22]} 1-0

[Event "56th Biel Festival MTO 2023"]
[White "Matsumura,Cocoro"]
[Black "Ermitsch,Magnus"]
[Site "Biel"]
[Round "6.37"]
[Annotator "ChessBase"]
[Result "0-1"]
[Date "2023.07.24"]
[WhiteElo "2081"]
[BlackElo "2232"]
[PlyCount "64"]
[TimeControl "60"]

1. e4 {[%emt 0:0:0]} c5 {[%emt 0:0:0]} 2. Nf3 {[%emt 0:0:0]} e6 {[%emt 0:0:0]} 3. d4 {[%emt 0:0:0]} cxd4 {[%emt 0:0:0]} 4. Nxd4 {[%emt 0:0:0]} Nc6 {[%emt 0:0:0]} 5. Nc3 {[%emt 0:0:0]} Qc7 {[%emt 0:0:0]} 6. Be3 {[%emt 0:0:0]} a6 {[%emt 0:0:0]} 7. a3 {[%emt 0:0:0]} Nf6 {[%emt 0:0:0]} 8. f4 {[%emt 0:0:0]} d5 {[%emt 0:9:58]} 9. exd5 {[%emt 0:0:16]} exd5 {[%emt 0:2:11]} 10. Qd2 {[%emt 0:11:23]} Bd6 {[%emt 0:4:44]} 11. O-O-O {[%emt 0:2:31]} O-O {[%emt 0:1:52]} 12. Be2 {[%emt 0:27:18]} Re8 {[%emt 0:3:17]} 13. Rhf1 {[%emt 0:1:18]} Ne4 {[%emt 0:11:54]} 14. Nxe4 {[%emt 0:8:17]} Rxe4 {[%emt 0:0:40]} 15. Nxc6 {[%emt 0:1:50]} bxc6 {[%emt 0:0:14]} 16. Bd3 {[%emt 0:0:10]} Ra4 {[%emt 0:6:22]} 17. c4 {[%emt 0:7:46]} Bg4 {[%emt 0:5:45]} 18. Rde1 {[%emt 0:2:11]} dxc4 {[%emt 0:2:38]} 19. Bxh7+ {[%emt 0:2:11]} Kh8 {[%emt 0:4:46]} 20. Bb1 {[%emt 0:7:6]} Rxa3 {[%emt 0:27:7]} 21. Qc2 {[%emt 0:3:15]} Rd3 {[%emt 0:14:15]} 22. Qxc4 {[%emt 0:1:42]} Rd5 {[%emt 0:0:8]} 23. f5 {[%emt 0:1:19]} Be5 {[%emt 0:0:35]} 24. Qxg4 {[%emt 0:6:16]} Bxb2+ {[%emt 0:0:45]} 25. Kc2 {[%emt 0:7:18]} Qa5 {[%emt 0:1:38]} 26. Qc4 {[%emt 0:0:42]} Bf6 {[%emt 0:2:13]} 27. Ba2 {[%emt 0:2:54]} Re8 {[%emt 0:0:55]} 28. Qb3 {[%emt 0:4:52]} Rxe3 {[%emt 0:0:57]} 29. Rxe3 {[%emt 0:1:13]} Qd2+ {[%emt 0:0:6]} 30. Kb1 {[%emt 0:0:4]} Rb5 {[%emt 0:0:9]} 31. Rh3+ {[%emt 0:1:16]} Kg8 {[%emt 0:0:6]} 32. Rh1 {[%emt 0:2:38]} Qxg2 {[%emt 0:0:57]} 0-1

[Event "56th Biel Festival MTO 2023"]
[White "Urh,Zala"]
[Black "Rotunno,Flavio"]
[Site "Biel"]
[Round "6.38"]
[Annotator "ChessBase"]
[Result "1-0"]
[Date "2023.07.24"]
[WhiteElo "2231"]
[BlackElo "2005"]
[PlyCount "42"]
[TimeControl "60"]

1. d4 {[%emt 0:0:0]} Nf6 {[%emt 0:0:0]} 2. c4 {[%emt 0:0:0]} e6 {[%emt 0:0:0]} 3. Nf3 {[%emt 0:0:0]} b6 {[%emt 0:0:0]} 4. g3 {[%emt 0:0:0]} Bb4+ {[%emt 0:0:0]} 5. Bd2 {[%emt 0:0:0]} c5 {[%emt 0:0:0]} 6. Bxb4 {[%emt 0:0:0]} cxb4 {[%emt 0:0:0]} 7. Bg2 {[%emt 0:0:0]} Bb7 {[%emt 0:0:0]} 8. O-O {[%emt 0:0:0]} a5 {[%emt 0:0:0]} 9. Qd3 {[%emt 0:0:0]} O-O {[%emt 0:0:0]} 10. Nbd2 {[%emt 0:0:0]} d6 {[%emt 0:0:0]} 11. e4 {[%emt 0:0:0]} e5 {[%emt 0:0:0]} 12. d5 {[%emt 0:5:26]} Qc7 {[%emt 0:6:43]} 13. Nh4 {[%emt 0:2:36]} Nbd7 {[%emt 0:7:28]} 14. Kh1 {[%emt 0:11:13]} Rfe8 {[%emt 0:8:5]} 15. Nf5 {[%emt 0:2:6]} Nc5 {[%emt 0:13:31]} 16. Qe3 {[%emt 0:0:30]} h6 {[%emt 0:0:30]} 17. f4 {[%emt 0:34:53]} Bc8 {[%emt 0:5:8]} 18. Nh4 {[%emt 0:1:55]} Ba6 {[%emt 0:32:17]} 19. f5 {[%emt 0:6:44]} Qe7 {[%emt 0:0:30]} 20. Qf2 {[%emt 0:0:30]} Rab8 {[%emt 0:0:30]} 21. Nhf3 {[%emt 0:7:18]} Rec8 {[%emt 0:2:32]} 1-0

[Event "56th Biel Festival MTO 2023"]
[White "Coles,Robin"]
[Black "Adocchio,Giampiero"]
[Site "Biel"]
[Round "6.39"]
[Annotator "ChessBase"]
[Result "0-1"]
[Date "2023.07.24"]
[WhiteElo "2070"]
[BlackElo "2165"]
[PlyCount "90"]
[TimeControl "60"]

1. e4 {[%emt 0:0:0]} e6 {[%emt 0:0:0]} 2. d4 {[%emt 0:0:0]} d5 {[%emt 0:0:0]} 3. Nd2 {[%emt 0:0:0]} c5 {[%emt 0:0:0]} 4. Ngf3 {[%emt 0:0:0]} cxd4 {[%emt 0:0:0]} 5. Nxd4 {[%emt 0:0:0]} Nc6 {[%emt 0:0:0]} 6. Bb5 {[%emt 0:0:0]} Bd7 {[%emt 0:0:0]} 7. Nxc6 {[%emt 0:0:18]} bxc6 {[%emt 0:0:0]} 8. Bd3 {[%emt 0:0:30]} Bd6 {[%emt 0:0:0]} 9. Qe2 {[%emt 0:0:30]} e5 {[%emt 0:0:0]} 10. exd5 {[%emt 0:0:30]} cxd5 {[%emt 0:0:0]} 11. c4 {[%emt 0:0:30]} Ne7 {[%emt 0:0:0]} 12. cxd5 {[%emt 0:2:46]} Nxd5 {[%emt 0:0:0]} 13. Be4 {[%emt 0:0:30]} Nf4 {[%emt 0:0:0]} 14. Qa6 {[%emt 0:0:30]} Bc5 {[%emt 0:0:0]} 15. O-O {[%emt 0:7:56]} Rb8 {[%emt 0:0:55]} 16. Nb3 {[%emt 0:8:56]} Bb6 {[%emt 0:7:3]} 17. Bxf4 {[%emt 0:6:42]} exf4 {[%emt 0:3:6]} 18. Rad1 {[%emt 0:11:51]} O-O {[%emt 0:6:55]} 19. Bxh7+ {[%emt 0:0:30]} Kxh7 {[%emt 0:0:11]} 20. Qd3+ {[%emt 0:5:51]} Kg8 {[%emt 0:1:56]} 21. Qxd7 {[%emt 0:4:42]} Qf6 {[%emt 0:3:37]} 22. Qg4 {[%emt 0:0:30]} Qxb2 {[%emt 0:0:30]} 23. Rd2 {[%emt 0:0:30]} Qf6 {[%emt 0:0:30]} 24. Rd5 {[%emt 0:0:30]} g6 {[%emt 0:4:4]} 25. Rd3 {[%emt 0:7:56]} Rbc8 {[%emt 0:10:9]} 26. Qf3 {[%emt 0:25:14]} Rc2 {[%emt 0:22:41]} 27. a4 {[%emt 0:0:30]} Re8 {[%emt 0:0:30]} 28. Rd2 {[%emt 0:0:30]} Rxd2 {[%emt 0:0:30]} 29. Nxd2 {[%emt 0:0:30]} Qd4 {[%emt 0:0:30]} 30. a5 {[%emt 0:0:30]} Qxd2 {[%emt 0:0:30]} 31. axb6 {[%emt 0:0:30]} axb6 {[%emt 0:0:30]} 32. g3 {[%emt 0:0:30]} fxg3 {[%emt 0:0:30]} 33. hxg3 {[%emt 0:0:30]} Re1 {[%emt 0:0:30]} 34. Qb3 {[%emt 0:2:26]} Rxf1+ {[%emt 0:1:25]} 35. Kxf1 {[%emt 0:0:36]} Qc1+ {[%emt 0:0:6]} 36. Ke2 {[%emt 0:0:20]} Qc5 {[%emt 0:0:7]} 37. f4 {[%emt 0:2:27]} Qd4 {[%emt 0:3:40]} 38. Kf3 {[%emt 0:3:7]} Qc5 {[%emt 0:10:25]} 39. Ke4 {[%emt 0:4:7]} b5 {[%emt 0:2:13]} 40. Kd3 {[%emt 0:3:37]} Qf2 {[%emt 0:5:1]} 41. Ke4 {[%emt 0:32:50]} Qe2+ {[%emt 0:30:11]} 42. Kd4 {[%emt 0:0:31]} Kg7 {[%emt 0:1:33]} 43. Kc5 {[%emt 0:0:0]} Kf6 {[%emt 0:0:0]} 44. g4 {[%emt 0:0:0]} Qf2+ {[%emt 0:0:0]} 45. Kxb5 {[%emt 0:0:0]} Qxf4 {[%emt 0:0:0]} 0-1

[Event "56th Biel Festival MTO 2023"]
[White "Wang,Chuqiao"]
[Black "Prieb,Robert"]
[Site "Biel"]
[Round "6.40"]
[Annotator "ChessBase"]
[Result "1-0"]
[Date "2023.07.24"]
[WhiteElo "2161"]
[BlackElo "2060"]
[PlyCount "139"]
[TimeControl "60"]

1. d4 {[%emt 0:0:0]} Nf6 {[%emt 0:0:0]} 2. c4 {[%emt 0:0:0]} g6 {[%emt 0:0:0]} 3. Nc3 {[%emt 0:0:0]} d5 {[%emt 0:0:0]} 4. cxd5 {[%emt 0:0:0]} Nxd5 {[%emt 0:0:0]} 5. Bd2 {[%emt 0:0:0]} Bg7 {[%emt 0:0:0]} 6. e4 {[%emt 0:0:0]} Nb6 {[%emt 0:0:0]} 7. Be3 {[%emt 0:0:0]} O-O {[%emt 0:0:0]} 8. h3 {[%emt 0:0:0]} e5 {[%emt 0:0:0]} 9. d5 {[%emt 0:0:0]} c6 {[%emt 0:0:0]} 10. Qb3 {[%emt 0:5:45]} cxd5 {[%emt 0:3:39]} 11. Bxb6 {[%emt 0:2:44]} Qxb6 {[%emt 0:0:43]} 12. Qxb6 {[%emt 0:1:55]} axb6 {[%emt 0:0:2]} 13. Nxd5 {[%emt 0:0:14]} Be6 {[%emt 0:1:23]} 14. Bc4 {[%emt 0:1:37]} Nc6 {[%emt 0:1:31]} 15. a3 {[%emt 0:4:5]} b5 {[%emt 0:5:45]} 16. Ba2 {[%emt 0:4:23]} Bxd5 {[%emt 0:7:30]} 17. Bxd5 {[%emt 0:1:28]} Nb4 {[%emt 0:1:53]} 18. O-O-O {[%emt 0:7:47]} Nxd5 {[%emt 0:1:58]} 19. Rxd5 {[%emt 0:0:21]} Rfc8+ {[%emt 0:2:8]} 20. Kb1 {[%emt 0:0:34]} b4 {[%emt 0:2:9]} 21. axb4 {[%emt 0:0:16]} Rc4 {[%emt 0:0:51]} 22. f3 {[%emt 0:0:40]} Rxb4 {[%emt 0:2:6]} 23. Ne2 {[%emt 0:0:13]} Rba4 {[%emt 0:5:7]} 24. Rhd1 {[%emt 0:1:38]} Ra1+ {[%emt 0:1:43]} 25. Kc2 {[%emt 0:0:1]} Rxd1 {[%emt 0:2:8]} 26. Rxd1 {[%emt 0:0:24]} f5 {[%emt 0:2:0]} 27. Nc3 {[%emt 0:0:10]} Rf8 {[%emt 0:2:3]} 28. Kb3 {[%emt 0:1:2]} Bh6 {[%emt 0:2:33]} 29. Rd5 {[%emt 0:4:0]} Bf4 {[%emt 0:0:47]} 30. Kc4 {[%emt 0:1:16]} Rf7 {[%emt 0:6:32]} 31. Kd3 {[%emt 0:3:57]} Kg7 {[%emt 0:2:0]} 32. Ne2 {[%emt 0:5:57]} Kf6 {[%emt 0:7:50]} 33. g3 {[%emt 0:0:33]} Bh6 {[%emt 0:1:12]} 34. Rd6+ {[%emt 0:0:18]} Ke7 {[%emt 0:1:30]} 35. Rb6 {[%emt 0:0:38]} Kd8 {[%emt 0:1:15]} 36. exf5 {[%emt 0:0:46]} Rxf5 {[%emt 0:0:8]} 37. Ke4 {[%emt 0:0:42]} Kc7 {[%emt 0:0:40]} 38. Re6 {[%emt 0:2:2]} Kd7 {[%emt 0:0:20]} 39. Rb6 {[%emt 0:0:47]} Kc7 {[%emt 0:0:2]} 40. Rb3 {[%emt 0:1:8]} Bg7 {[%emt 0:2:50]} 41. Nc3 {[%emt 0:30:16]} Rf7 {[%emt 0:31:42]} 42. Nd5+ {[%emt 0:1:51]} Kd6 {[%emt 0:4:6]} 43. Rb5 {[%emt 0:2:1]} Kc6 {[%emt 0:1:50]} 44. Rb3 {[%emt 0:3:47]} Rd7 {[%emt 0:3:42]} 45. Rc3+ {[%emt 0:0:27]} Kd6 {[%emt 0:1:7]} 46. Nb6 {[%emt 0:1:13]} Rf7 {[%emt 0:1:4]} 47. Rc8 {[%emt 0:1:45]} Ke6 {[%emt 0:7:38]} 48. b3 {[%emt 0:5:19]} Re7 {[%emt 0:3:32]} 49. b4 {[%emt 0:2:25]} h6 {[%emt 0:8:3]} 50. Rc5 {[%emt 0:1:14]} g5 {[%emt 0:7:0]} 51. Rc8 {[%emt 0:1:52]} Kf7 {[%emt 0:0:0]} 52. Rd8 {[%emt 0:0:0]} Ke6 {[%emt 0:0:0]} 53. Na4 {[%emt 0:0:0]} Kf7 {[%emt 0:0:0]} 54. Nc5 {[%emt 0:0:0]} Bf8 {[%emt 0:0:0]} 55. Kf5 {[%emt 0:0:0]} Bg7 {[%emt 0:0:0]} 56. Rb8 {[%emt 0:0:0]} e4 {[%emt 0:0:0]} 57. fxe4 {[%emt 0:0:0]} Be5 {[%emt 0:0:0]} 58. Rxb7 {[%emt 0:0:0]} Rxb7 {[%emt 0:0:0]} 59. Nxb7 {[%emt 0:0:0]} Bxg3 {[%emt 0:0:0]} 60. e5 {[%emt 0:0:0]} h5 {[%emt 0:0:0]} 61. Nd6+ {[%emt 0:0:0]} Ke7 {[%emt 0:0:0]} 62. Ne4 {[%emt 0:0:0]} Be1 {[%emt 0:0:0]} 63. Nxg5 {[%emt 0:0:0]} Bxb4 {[%emt 0:0:0]} 64. Nh7 {[%emt 0:0:0]} Ba5 {[%emt 0:0:0]} 65. Nf6 {[%emt 0:0:0]} h4 {[%emt 0:0:0]} 66. Nd5+ {[%emt 0:0:0]} Kf7 {[%emt 0:0:0]} 67. e6+ {[%emt 0:0:0]} Ke8 {[%emt 0:0:0]} 68. Kf6 {[%emt 0:0:0]} Bd8+ {[%emt 0:0:0]} 69. e7 {[%emt 0:0:0]} Bb6 {[%emt 0:0:0]} 70. Ke6 {[%emt 0:0:0]} 1-0

[Event "56th Biel Festival MTO 2023"]
[White "Kocharin,Timur"]
[Black "Gemelli,Romain"]
[Site "Biel"]
[Round "6.41"]
[Annotator "ChessBase"]
[Result "1/2-1/2"]
[Date "2023.07.24"]
[WhiteElo "2225"]
[BlackElo "2122"]
[PlyCount "69"]
[TimeControl "60"]

1. e4 {[%emt 0:0:0]} c5 {[%emt 0:0:0]} 2. Nf3 {[%emt 0:0:0]} Nc6 {[%emt 0:0:0]} 3. Bb5 {[%emt 0:0:0]} d6 {[%emt 0:0:0]} 4. O-O {[%emt 0:0:0]} Bd7 {[%emt 0:0:0]} 5. Re1 {[%emt 0:0:0]} Nf6 {[%emt 0:0:0]} 6. c3 {[%emt 0:0:0]} a6 {[%emt 0:0:0]} 7. Bf1 {[%emt 0:0:0]} Bg4 {[%emt 0:0:0]} 8. d4 {[%emt 0:0:0]} cxd4 {[%emt 0:0:0]} 9. cxd4 {[%emt 0:0:0]} e5 {[%emt 0:0:0]} 10. d5 {[%emt 0:0:0]} Nd4 {[%emt 0:0:0]} 11. Be3 {[%emt 0:0:0]} Be7 {[%emt 0:5:8]} 12. Bxd4 {[%emt 0:10:12]} exd4 {[%emt 0:0:34]} 13. Nbd2 {[%emt 0:2:24]} Nd7 {[%emt 0:5:7]} 14. Qa4 {[%emt 0:15:23]} b5 {[%emt 0:11:22]} 15. Qxd4 {[%emt 0:0:18]} O-O {[%emt 0:0:43]} 16. h3 {[%emt 0:7:26]} Bxf3 {[%emt 0:4:56]} 17. Nxf3 {[%emt 0:0:6]} Qa5 {[%emt 0:6:37]} 18. a4 {[%emt 0:13:47]} Bf6 {[%emt 0:3:46]} 19. axb5 {[%emt 0:11:9]} Qxa1 {[%emt 0:5:25]} 20. Rxa1 {[%emt 0:0:11]} Bxd4 {[%emt 0:0:6]} 21. Nxd4 {[%emt 0:0:4]} axb5 {[%emt 0:0:13]} 22. Rxa8 {[%emt 0:0:20]} Rxa8 {[%emt 0:0:5]} 23. Nxb5 {[%emt 0:2:15]} Ra6 {[%emt 0:12:12]} 24. Na3 {[%emt 0:5:48]} Rb6 {[%emt 0:7:55]} 25. Nc4 {[%emt 0:6:33]} Rb4 {[%emt 0:0:30]} 26. Nxd6 {[%emt 0:4:6]} Kf8 {[%emt 0:5:38]} 27. Nc4 {[%emt 0:3:7]} Nb6 {[%emt 0:3:31]} 28. b3 {[%emt 0:2:45]} Rxb3 {[%emt 0:0:49]} 29. Ne3 {[%emt 0:0:43]} Ke7 {[%emt 0:4:49]} 30. g3 {[%emt 0:1:29]} g6 {[%emt 0:3:31]} 31. Kg2 {[%emt 0:0:42]} Kd6 {[%emt 0:2:36]} 32. Be2 {[%emt 0:3:14]} Ke5 {[%emt 0:3:54]} 33. Bf3 {[%emt 0:2:42]} h5 {[%emt 0:2:27]} 34. h4 {[%emt 0:2:48]} Rc3 {[%emt 0:1:40]} 35. Nd1 {[%emt 0:1:50]} 1/2-1/2

[Event "56th Biel Festival MTO 2023"]
[White "Jaksland,Tim"]
[Black "Matta,Vinay Kumar"]
[Site "Biel"]
[Round "6.42"]
[Annotator "ChessBase"]
[Result "1/2-1/2"]
[Date "2023.07.24"]
[WhiteElo "2136"]
[BlackElo "2111"]
[PlyCount "55"]
[TimeControl "60"]

1. e4 {[%emt 0:0:0]} e5 {[%emt 0:0:0]} 2. Nf3 {[%emt 0:0:0]} Nc6 {[%emt 0:0:0]} 3. d4 {[%emt 0:0:0]} exd4 {[%emt 0:0:0]} 4. Nxd4 {[%emt 0:0:0]} Qf6 {[%emt 0:0:0]} 5. Nxc6 {[%emt 0:0:0]} Bc5 {[%emt 0:0:0]} 6. Qf3 {[%emt 0:0:0]} dxc6 {[%emt 0:0:0]} 7. Nc3 {[%emt 0:0:0]} Be6 {[%emt 0:0:0]} 8. Be3 {[%emt 0:0:0]} Bb4 {[%emt 0:0:0]} 9. O-O-O {[%emt 0:0:0]} Bxc3 {[%emt 0:0:0]} 10. bxc3 {[%emt 0:0:15]} Qxc3 {[%emt 0:0:0]} 11. Bd4 {[%emt 0:0:53]} Qxf3 {[%emt 0:0:23]} 12. gxf3 {[%emt 0:0:6]} f6 {[%emt 0:0:17]} 13. Rg1 {[%emt 0:0:23]} Kf7 {[%emt 0:1:37]} 14. f4 {[%emt 0:0:52]} g6 {[%emt 0:7:58]} 15. f5 {[%emt 0:1:45]} gxf5 {[%emt 0:0:27]} 16. exf5 {[%emt 0:0:12]} Bd5 {[%emt 0:1:15]} 17. Be2 {[%emt 0:4:44]} b6 {[%emt 0:4:57]} 18. Be3 {[%emt 0:37:4]} Ke8 {[%emt 0:51:2]} 19. Bh5+ {[%emt 0:30:22]} Bf7 {[%emt 0:1:48]} 20. Bf3 {[%emt 0:2:57]} Ne7 {[%emt 0:1:5]} 21. Rge1 {[%emt 0:6:31]} Rd8 {[%emt 0:2:56]} 22. Rxd8+ {[%emt 0:5:52]} Kxd8 {[%emt 0:0:12]} 23. Bd4 {[%emt 0:0:6]} Re8 {[%emt 0:4:4]} 24. Bxf6 {[%emt 0:1:25]} Kd7 {[%emt 0:0:8]} 25. Bxe7 {[%emt 0:6:3]} Rxe7 {[%emt 0:0:6]} 26. Bxc6+ {[%emt 0:0:22]} Kd6 {[%emt 0:0:4]} 27. Rxe7 {[%emt 0:0:33]} Kxe7 {[%emt 0:0:4]} 28. a3 {[%emt 0:0:10]} 1/2-1/2

[Event "56th Biel Festival MTO 2023"]
[White "Erne,Raphael"]
[Black "Misiano,Franco"]
[Site "Biel"]
[Round "6.43"]
[Annotator "ChessBase"]
[Result "1/2-1/2"]
[Date "2023.07.24"]
[WhiteElo "2077"]
[BlackElo "2133"]
[PlyCount "76"]
[TimeControl "60"]

1. c4 {[%emt 0:0:0]} e5 {[%emt 0:0:0]} 2. g3 {[%emt 0:0:0]} Nf6 {[%emt 0:0:0]} 3. Bg2 {[%emt 0:0:0]} c6 {[%emt 0:0:0]} 4. Nf3 {[%emt 0:0:0]} e4 {[%emt 0:0:0]} 5. Nd4 {[%emt 0:0:0]} Qb6 {[%emt 0:0:0]} 6. Nb3 {[%emt 0:0:0]} a5 {[%emt 0:0:0]} 7. d3 {[%emt 0:0:0]} a4 {[%emt 0:0:0]} 8. N3d2 {[%emt 0:0:0]} d5 {[%emt 0:0:0]} 9. cxd5 {[%emt 0:0:44]} exd3 {[%emt 0:0:0]} 10. O-O {[%emt 0:0:23]} cxd5 {[%emt 0:0:0]} 11. exd3 {[%emt 0:0:13]} Be7 {[%emt 0:0:0]} 12. Nc3 {[%emt 0:3:6]} Qa5 {[%emt 0:0:0]} 13. Re1 {[%emt 0:0:53]} Nc6 {[%emt 0:0:0]} 14. b4 {[%emt 0:1:31]} axb3 {[%emt 0:2:29]} 15. Bb2 {[%emt 0:6:48]} Qd8 {[%emt 0:5:40]} 16. Nxb3 {[%emt 0:9:22]} O-O {[%emt 0:0:25]} 17. Nb5 {[%emt 0:9:19]} Bg4 {[%emt 0:5:44]} 18. Bf3 {[%emt 0:6:45]} Bxf3 {[%emt 0:1:11]} 19. Qxf3 {[%emt 0:0:12]} Qd7 {[%emt 0:1:50]} 20. a4 {[%emt 0:8:40]} Qg4 {[%emt 0:3:42]} 21. Qxg4 {[%emt 0:5:42]} Nxg4 {[%emt 0:0:8]} 22. h3 {[%emt 0:8:53]} Nf6 {[%emt 0:1:19]} 23. N5d4 {[%emt 0:8:52]} Bb4 {[%emt 0:1:18]} 24. Nxc6 {[%emt 0:2:56]} bxc6 {[%emt 0:0:47]} 25. Rec1 {[%emt 0:1:7]} Rfc8 {[%emt 0:5:29]} 26. Bxf6 {[%emt 0:1:43]} gxf6 {[%emt 0:0:14]} 27. d4 {[%emt 0:3:40]} Ra6 {[%emt 0:1:38]} 28. a5 {[%emt 0:6:2]} Rb8 {[%emt 0:2:32]} 29. Ra4 {[%emt 0:7:17]} Rb5 {[%emt 0:3:17]} 30. Nc5 {[%emt 0:2:18]} Raxa5 {[%emt 0:12:38]} 31. Rxa5 {[%emt 0:0:11]} Rxa5 {[%emt 0:0:59]} 32. Nd7 {[%emt 0:2:19]} Be7 {[%emt 0:1:10]} 33. Nb8 {[%emt 0:2:10]} Ra4 {[%emt 0:1:59]} 34. Nxc6 {[%emt 0:0:9]} Bd6 {[%emt 0:0:11]} 35. Rb1 {[%emt 0:3:9]} Ra6 {[%emt 0:3:6]} 36. Nb8 {[%emt 0:1:11]} Ra4 {[%emt 0:1:3]} 37. Nc6 {[%emt 0:0:19]} Ra6 {[%emt 0:0:9]} 38. Nb8 {[%emt 0:0:29]} Ra4 {[%emt 0:0:5]} 1/2-1/2

[Event "56th Biel Festival MTO 2023"]
[White "Jaivardhan Raj"]
[Black "Stijve,Niels"]
[Site "Biel"]
[Round "6.44"]
[Annotator "ChessBase"]
[Result "1/2-1/2"]
[Date "2023.07.24"]
[WhiteElo "2009"]
[BlackElo "2088"]
[PlyCount "91"]
[TimeControl "60"]

1. e4 {[%emt 0:0:0]} c5 {[%emt 0:0:0]} 2. Nf3 {[%emt 0:0:0]} e6 {[%emt 0:0:0]} 3. d4 {[%emt 0:0:0]} cxd4 {[%emt 0:0:0]} 4. Nxd4 {[%emt 0:0:0]} a6 {[%emt 0:0:0]} 5. Bd3 {[%emt 0:0:0]} Nf6 {[%emt 0:0:0]} 6. Qe2 {[%emt 0:0:0]} d6 {[%emt 0:0:0]} 7. O-O {[%emt 0:0:0]} Qc7 {[%emt 0:0:0]} 8. c4 {[%emt 0:0:0]} Nbd7 {[%emt 0:0:0]} 9. Nc3 {[%emt 0:0:0]} g6 {[%emt 0:0:0]} 10. f4 {[%emt 0:0:0]} Bg7 {[%emt 0:0:0]} 11. Nf3 {[%emt 0:0:0]} O-O {[%emt 0:1:5]} 12. Kh1 {[%emt 0:0:0]} b6 {[%emt 0:2:2]} 13. Bd2 {[%emt 0:0:0]} Bb7 {[%emt 0:3:28]} 14. Rae1 {[%emt 0:1:6]} Rad8 {[%emt 0:9:54]} 15. b4 {[%emt 0:3:54]} Rfe8 {[%emt 0:10:0]} 16. a3 {[%emt 0:2:54]} e5 {[%emt 0:5:54]} 17. fxe5 {[%emt 0:1:34]} Nxe5 {[%emt 0:0:54]} 18. Nxe5 {[%emt 0:0:40]} Rxe5 {[%emt 0:1:57]} 19. Bf4 {[%emt 0:2:12]} Re6 {[%emt 0:2:47]} 20. Bg5 {[%emt 0:5:38]} Rde8 {[%emt 0:3:40]} 21. Qf3 {[%emt 0:8:58]} Nxe4 {[%emt 0:15:8]} 22. Bxe4 {[%emt 0:10:15]} Bxc3 {[%emt 0:3:43]} 23. Qxc3 {[%emt 0:9:22]} Rxe4 {[%emt 0:12:9]} 24. Rxe4 {[%emt 0:13:9]} Rxe4 {[%emt 0:4:43]} 25. Bh6 {[%emt 0:8:46]} Re5 {[%emt 0:8:40]} 26. Qc2 {[%emt 0:7:2]} Qe7 {[%emt 0:7:0]} 27. Qf2 {[%emt 0:7:0]} Re2 {[%emt 0:7:33]} 28. Qd4 {[%emt 0:2:20]} f6 {[%emt 0:2:13]} 29. Rg1 {[%emt 0:0:36]} Qd8 {[%emt 0:1:28]} 30. Be3 {[%emt 0:1:55]} Qe7 {[%emt 0:0:29]} 31. Bf4 {[%emt 0:1:39]} Re4 {[%emt 0:0:35]} 32. Qd2 {[%emt 0:2:4]} Rxc4 {[%emt 0:0:25]} 33. Bxd6 {[%emt 0:0:42]} Qd7 {[%emt 0:0:39]} 34. Rd1 {[%emt 0:5:21]} Qc6 {[%emt 0:0:13]} 35. Qe2 {[%emt 0:7:37]} Re4 {[%emt 0:0:45]} 36. Qf2 {[%emt 0:1:40]} Kg7 {[%emt 0:0:29]} 37. Bg3 {[%emt 0:0:46]} Qe6 {[%emt 0:0:35]} 38. Rd6 {[%emt 0:1:5]} Qe7 {[%emt 0:0:24]} 39. Rxb6 {[%emt 0:1:2]} Bd5 {[%emt 0:0:33]} 40. Rxa6 {[%emt 0:0:36]} Rc4 {[%emt 0:0:34]} 41. h3 {[%emt 0:30:33]} Qe4 {[%emt 0:0:0]} 42. Ra7+ {[%emt 0:0:0]} Kg8 {[%emt 0:4:34]} 43. Rc7 {[%emt 0:0:0]} Bc6 {[%emt 0:11:7]} 44. Rc8+ {[%emt 0:0:0]} Kf7 {[%emt 0:4:44]} 45. Rc7+ {[%emt 0:0:0]} Kg8 {[%emt 0:0:24]} 46. Rc8+ {[%emt 0:0:0]} 1/2-1/2